fUST/lending_fUST_20250901
["ID","MTS","AMOUNT","RATE_DAILY","PERIOD"]
[382817851,1756739441519,-3049.68,0.00013698,2]
[382817852,1756739441530,-227.84848448,0.00013698,2]
[382817853,1756739441541,-480.0,0.00013698,2]
[382817854,1756739441551,-480.0,0.00013698,2]
[382817855,1756739441562,-617.08,0.00013698,2]
[382817856,1756739441572,-1030.05,0.00013698,2]
[382817857,1756739441582,-1023.56,0.00013698,2]
[382817858,1756739441591,-480.0,0.00013698,2]
[382817859,1756739441602,-300.32,0.00013698,2]
[382817860,1756739441612,-818.2,0.00013698,2]
[382817861,1756739441624,-722.56,0.00013698,2]
[382817862,1756739441634,-2156.49,0.00013698,2]
[382817863,1756739441644,-480.0,0.00013698,2]
[382817864,1756739441654,-638.61,0.00013698,2]
[382817865,1756739441664,-480.0,0.00013698,2]
[382817866,1756739441673,-487.47036349,0.00013698,2]
[382817867,1756739441683,-701.35,0.00013698,2]
[382817868,1756739441692,-842.95,0.00013698,2]
[382817869,1756739441702,-480.0,0.00013698,2]
[382817870,1756739441715,-2076.44,0.00013698,2]
[382817871,1756739441725,-480.0,0.00013698,2]
[382817872,1756739441735,-480.0,0.00013698,2]
[382817873,1756739441747,-870.92,0.00013698,2]
[382817874,1756739441757,-480.0,0.00013698,2]
[382817875,1756739441767,-480.0,0.00013698,2]
[382817876,1756739441776,-480.0,0.00013698,2]
[382817877,1756739441786,-480.0,0.00013698,2]
[382817878,1756739441796,-480.0,0.00013698,2]
[382817879,1756739441806,-480.0,0.00013698,2]
[382817880,1756739441815,-564.33,0.00013698,2]
[382817881,1756739441824,-480.0,0.00013698,2]
[382817882,1756739441834,-480.0,0.00013698,2]
[382817883,1756739441843,-480.0,0.00013698,2]
[382817884,1756739441853,-480.0,0.00013698,2]
[382817885,1756739441863,-569.31,0.00013698,2]
[382817886,1756739441873,-480.0,0.00013698,2]
[382817887,1756739441883,-480.0,0.00013698,2]
[382817888,1756739441893,-480.0,0.00013698,2]
[382817889,1756739441903,-581.37,0.00013698,2]
[382817890,1756739441913,-480.0,0.00013698,2]
[382817891,1756739441922,-800.53,0.00013698,2]
[382817892,1756739441933,-480.0,0.00013698,2]
[382817893,1756739441943,-5013.16,0.00013698,2]
[382817894,1756739441952,-708.85,0.00013698,2]
[382817895,1756739441962,-213.35,0.00013698,2]
[382817896,1756739441972,-480.0,0.00013698,2]
[382817897,1756739441984,-480.0,0.00013698,2]
[382817898,1756739441994,-480.0,0.00013698,2]
[382817899,1756739442004,-480.0,0.00013698,2]
[382817900,1756739442013,-480.0,0.00013698,2]
[382817901,1756739442023,-1979.6,0.00013698,2]
[382817902,1756739442033,-1694.39,0.00013698,2]
[382817903,1756739442043,-480.0,0.00013698,2]
[382817904,1756739442053,-1745.04,0.00013698,2]
[382817905,1756739442063,-480.0,0.00013698,2]
[382817906,1756739442072,-6075.18,0.00013698,2]
[382817907,1756739442082,-480.0,0.00013698,2]
[382817908,1756739442091,-480.0,0.00013698,2]
[382817909,1756739442101,-488.16,0.00013698,2]
[382817910,1756739442112,-764.79,0.00013698,2]
[382817911,1756739442122,-978.42,0.00013698,2]
[382817912,1756739442131,-480.0,0.00013698,2]
[382817913,1756739442141,-643.89,0.00013698,2]
[382817914,1756739442151,-540.99,0.00013698,2]
[382817915,1756739442163,-677.65,0.00013698,2]
[382817916,1756739442174,-480.0,0.00013698,2]
[382817917,1756739442183,-228.67,0.00013698,2]
[382817918,1756739442193,-480.0,0.00013698,2]
[382817919,1756739442202,-480.0,0.00013698,2]
[382817920,1756739442212,-626.24,0.00013698,2]
[382817921,1756739442221,-1508.31,0.00013698,2]
[382817922,1756739442233,-600.99,0.00013698,2]
[382817923,1756739442243,-480.0,0.00013698,2]
[382817924,1756739442253,-480.0,0.00013698,2]
[382817925,1756739442262,-480.0,0.00013698,2]
[382817926,1756739442272,-480.0,0.00013698,2]
[382817927,1756739442281,-892.75,0.00013698,2]
[382817928,1756739442291,-480.0,0.00013698,2]
[382817929,1756739442300,-480.0,0.00013698,2]
[382817930,1756739442310,-1121.98,0.00013698,2]
[382817931,1756739442319,-480.0,0.00013698,2]
[382817932,1756739442329,-480.0,0.00013698,2]
[382817933,1756739442339,-712.75,0.00013698,2]
[382817934,1756739442349,-480.0,0.00013698,2]
[382817936,1756739442571,-2114.91,0.00013698,2]
[382817937,1756739442594,-480.0,0.00013698,2]
[382817938,1756739442605,-501.7,0.00013698,2]
[382817939,1756739442616,-480.0,0.00013698,2]
[382817941,1756739442627,-1830.01,0.00013698,2]
[382817942,1756739442638,-480.0,0.00013698,2]
[382817943,1756739442648,-4420.14,0.00013698,2]
[382817944,1756739442658,-480.0,0.00013698,2]
[382817945,1756739442668,-480.0,0.00013698,2]
[382817946,1756739442678,-2378.0,0.00013698,2]
[382817947,1756739442689,-480.0,0.00013698,2]
[382817948,1756739442699,-480.0,0.00013698,2]
[382817949,1756739442710,-480.0,0.00013698,2]
[382817950,1756739442723,-480.0,0.00013698,2]
[382817951,1756739442734,-480.0,0.00013698,2]
[382817952,1756739442745,-835.91,0.00013698,2]
[382817953,1756739442755,-684.54,0.00013698,2]
[382817954,1756739442765,-480.0,0.00013698,2]
[382817955,1756739442776,-480.0,0.00013698,2]
[382817956,1756739442787,-581.8,0.00013698,2]
[382817957,1756739442798,-480.0,0.00013698,2]
[382817958,1756739442808,-480.0,0.00013698,2]
[382817959,1756739442818,-817.82,0.00013698,2]
[382817960,1756739442828,-480.0,0.00013698,2]
[382817961,1756739442837,-480.0,0.00013698,2]
[382817962,1756739442848,-517.89,0.00013698,2]
[382817963,1756739442857,-480.0,0.00013698,2]
[382817964,1756739442867,-544.81,0.00013698,2]
[382817965,1756739442877,-480.0,0.00013698,2]
[382817966,1756739442887,-480.0,0.00013698,2]
[382817967,1756739442897,-480.0,0.00013698,2]
[382817968,1756739442906,-691.87,0.00013698,2]
[382817969,1756739442917,-480.0,0.00013698,2]
[382817970,1756739442927,-671.45,0.00013698,2]
[382817971,1756739442937,-645.73,0.00013698,2]
[382817972,1756739442947,-480.0,0.00013698,2]
[382817973,1756739442957,-581.75558399,0.00013698,2]
[382817974,1756739442967,-480.0,0.00013698,2]
[382817975,1756739442979,-720.42,0.00013698,2]
[382817976,1756739442989,-2475.3,0.00013698,2]
[382817977,1756739442999,-480.0,0.00013698,2]
[382817978,1756739443009,-493.67,0.00013698,2]
[382817979,1756739443020,-1463.907051,0.00013699,2]
[382817980,1756739443030,-151.0,0.00013699,2]
[382817981,1756739443040,-152.049754,0.00013699,2]
[382817982,1756739443049,-1855.861978,0.00013699,2]
[382817983,1756739443060,-300.0,0.00013903,2]
[382817984,1756739443070,-300.0,0.00013903,2]
[382817985,1756739443080,-300.0,0.00013903,2]
[382817986,1756739443089,-300.0,0.00013903,2]
[382817987,1756739443099,-300.0,0.00013903,2]
[382817988,1756739443109,-300.0,0.00013903,2]
[382817989,1756739443119,-300.0,0.00013903,2]
[382817990,1756739443129,-300.0,0.00013903,2]
[382817991,1756739443139,-300.0,0.00013903,2]
[382817992,1756739443149,-300.0,0.00013903,2]
[382817993,1756739443159,-300.0,0.00013903,2]
[382817994,1756739443169,-300.0,0.00013903,2]
[382817995,1756739443179,-300.0,0.00013903,2]
[382817996,1756739443189,-300.0,0.00013903,2]
[382817997,1756739443199,-300.0,0.00013903,2]
[382817998,1756739443209,-600.0,0.00013931,2]
[382817999,1756739443220,-150.0,0.00013952,2]
[382818000,1756739443235,-150.0,0.00013952,2]
[382818001,1756739443245,-150.0,0.00013952,2]
[382818002,1756739443255,-150.0,0.00013952,2]
[382818004,1756739443265,-975.0,0.00013952,2]
[382818006,1756739443275,-977.62227187,0.00013952,2]
[382818015,1756739443745,-1336.70138972,0.00013698,2]
[382818016,1756739443756,-1175.37772813,0.00013952,2]
[382818017,1756739443766,-632.0,0.00013952,2]
[382818018,1756739443776,-168.0,0.00013958,2]
[382818019,1756739443788,-764.94,0.00013972,2]
[382818020,1756739443799,-480.0,0.00013972,2]
[382818021,1756739443809,-480.0,0.00013972,2]
[382818022,1756739443819,-480.0,0.00013972,2]
[382818023,1756739443829,-454.99736412,0.00013972,2]
[382818025,1756739446316,-25.00263588,0.00013972,2]
[382818026,1756739446326,-310.09213319,0.00013972,2]
[382818042,1756739551860,159.0,0.000135,2]
[382818043,1756739552526,159.0,0.000135,2]
[382818044,1756739553098,159.0,0.000135,2]
[382818045,1756739566943,159.0,0.000273,120]
[382818046,1756739567767,159.0,0.000273,120]
[382818048,1756739618859,159.0,0.000135,3]
[382818049,1756739619628,159.0,0.000135,3]
[382818050,1756739621390,159.0,0.000135,2]
[382818051,1756739621848,159.0,0.000135,2]
[382818052,1756739634082,159.0,0.000135,2]
[382818053,1756739661151,160.0,0.000135,2]
[382818054,1756739672766,161.10925487,0.000135,3]
[382818056,1756739788267,240.34612323,0.00013104,2]
[382818057,1756739790632,960.42310841,0.00013104,2]
[382818080,1756740523791,3069.67216451,0.00013462,2]
[382818084,1756740532299,3069.67216451,0.00013462,2]
[382818085,1756740548357,3069.67216451,0.00013462,2]
[382818086,1756740556804,1930.32783549,0.00013462,2]
[382818087,1756740572720,3069.67216451,0.00013462,2]
[382818088,1756740597355,790.98350647,0.00013462,2]
[382818139,1756740632590,-2074.87097782,0.00013598,2]
[382818140,1756740632601,-994.80118669,0.00013598,2]
[382818141,1756740632610,-300.0,0.00013678,2]
[382818142,1756740632619,-385.26661332,0.00013679,2]
[382818145,1756740638347,-814.73338668,0.00013679,2]
[382818146,1756740638356,-300.0,0.00013679,2]
[382818147,1756740638366,-300.0,0.00013679,2]
[382818148,1756740638375,-153.0,0.00013679,2]
[382818149,1756740638384,-300.0,0.00013679,2]
[382818150,1756740638394,-1200.0,0.00013679,2]
[382818151,1756740638404,-11366.76240249,0.0001368,2]
[382818152,1756740638414,-160.0,0.00013685,2]
[382818153,1756740638424,-217.44302069,0.00013685,2]
[382818154,1756740638433,-530.14184084,0.00013685,2]
[382818155,1756740638443,-160.0,0.00013685,2]
[382818156,1756740638452,-417.15472785,0.00013686,2]
[382818157,1756740638462,-232.83393981,0.00013686,2]
[382818158,1756740638471,-425.82406011,0.00013686,2]
[382818159,1756740638480,-846.10922732,0.00013686,2]
[382818161,1756740638491,-160.0,0.00013686,2]
[382818163,1756740638500,-151.0,0.0001369,2]
[382818164,1756740638510,-151.0,0.0001369,2]
[382818165,1756740638519,-151.0,0.0001369,2]
[382818166,1756740638529,-151.0,0.0001369,2]
[382818167,1756740638538,-151.0,0.0001369,2]
[382818168,1756740638547,-151.0,0.0001369,2]
[382818169,1756740638557,-151.0,0.0001369,2]
[382818170,1756740638567,-151.0,0.0001369,2]
[382818171,1756740638578,-151.0,0.0001369,2]
[382818172,1756740638587,-231.78144757,0.00013697,2]
[382818173,1756740638598,-500.0,0.00013697,2]
[382818174,1756740638607,-500.0,0.00013697,2]
[382818175,1756740638617,-500.0,0.00013697,2]
[382818176,1756740638818,-500.0,0.00013697,2]
[382818177,1756740638828,-500.0,0.00013697,2]
[382818178,1756740638838,-500.0,0.00013697,2]
[382818179,1756740638847,-500.0,0.00013697,2]
[382818180,1756740638856,-219.6569029,0.00013697,2]
[382818181,1756740638866,-500.0,0.00013697,2]
[382818182,1756740638876,-500.0,0.00013697,2]
[382818183,1756740638885,-500.0,0.00013697,2]
[382818184,1756740638895,-500.0,0.00013697,2]
[382818185,1756740638905,-500.0,0.00013697,2]
[382818186,1756740638916,-500.0,0.00013697,2]
[382818187,1756740638925,-500.0,0.00013697,2]
[382818188,1756740638934,-500.0,0.00013697,2]
[382818189,1756740638943,-500.0,0.00013697,2]
[382818190,1756740638952,-500.0,0.00013697,2]
[382818191,1756740638962,-500.0,0.00013697,2]
[382818192,1756740638971,-500.0,0.00013697,2]
[382818193,1756740638981,-500.0,0.00013697,2]
[382818194,1756740638991,-500.0,0.00013697,2]
[382818195,1756740639000,-500.0,0.00013697,2]
[382818196,1756740639009,-356.69415808,0.00013697,2]
[382818197,1756740639019,-570.03,0.00013698,2]
[382818198,1756740639029,-480.0,0.00013698,2]
[382818199,1756740639038,-480.0,0.00013698,2]
[382818200,1756740639047,-584.05,0.00013698,2]
[382818201,1756740639056,-480.0,0.00013698,2]
[382818202,1756740639066,-480.0,0.00013698,2]
[382818203,1756740639076,-193.17,0.00013698,2]
[382818204,1756740639085,-480.0,0.00013698,2]
[382818205,1756740639095,-480.0,0.00013698,2]
[382818206,1756740639104,-480.0,0.00013698,2]
[382818207,1756740639113,-480.0,0.00013698,2]
[382818208,1756740639122,-480.0,0.00013698,2]
[382818209,1756740639132,-480.0,0.00013698,2]
[382818210,1756740639142,-480.0,0.00013698,2]
[382818211,1756740639150,-480.0,0.00013698,2]
[382818212,1756740639160,-480.0,0.00013698,2]
[382818213,1756740639169,-480.0,0.00013698,2]
[382818214,1756740639178,-517.12,0.00013698,2]
[382818215,1756740639188,-480.0,0.00013698,2]
[382818216,1756740639200,-485.77055894,0.00013698,2]
[382818217,1756740639210,-14.60465056,0.00013698,2]
[382818225,1756740640371,-465.39534944,0.00013698,2]
[382818226,1756740640381,-480.0,0.00013698,2]
[382818227,1756740640391,-195.87665056,0.00013698,2]
[382818228,1756740640403,-284.12334944,0.00013698,2]
[382818229,1756740640413,-480.0,0.00013698,2]
[382818230,1756740640422,-480.0,0.00013698,2]
[382818231,1756740640432,-455.87665056,0.00013698,2]
[382818235,1756740640588,-24.12334944,0.00013698,2]
[382818237,1756740640598,-540.8,0.00013698,2]
[382818239,1756740640607,-480.0,0.00013698,2]
[382818241,1756740640617,-480.0,0.00013698,2]
[382818243,1756740640627,-480.0,0.00013698,2]
[382818245,1756740640636,-480.0,0.00013698,2]
[382818247,1756740640646,-480.0,0.00013698,2]
[382818249,1756740640655,-480.0,0.00013698,2]
[382818251,1756740640664,-480.0,0.00013698,2]
[382818253,1756740640673,-480.0,0.00013698,2]
[382818255,1756740640683,-480.0,0.00013698,2]
[382818257,1756740640692,-480.0,0.00013698,2]
[382818259,1756740640701,-480.0,0.00013698,2]
[382818261,1756740640711,-480.0,0.00013698,2]
[382818263,1756740640720,-480.0,0.00013698,2]
[382818265,1756740640729,-480.0,0.00013698,2]
[382818267,1756740640741,-480.0,0.00013698,2]
[382818269,1756740640751,-480.0,0.00013698,2]
[382818271,1756740640760,-480.0,0.00013698,2]
[382818273,1756740640769,-480.0,0.00013698,2]
[382818275,1756740640779,-862.98,0.00013698,2]
[382818277,1756740640788,-480.32029745,0.00013698,2]
[382818279,1756740640798,-249.06316825,0.00013698,2]
[382818281,1756740640807,-205.6111874,0.00013698,2]
[382818283,1756740640817,-480.0,0.00013698,2]
[382818285,1756740640826,-480.0,0.00013698,2]
[382818287,1756740640835,-572.92,0.00013698,2]
[382818289,1756740640844,-772.66,0.00013698,2]
[382818291,1756740640854,-480.0,0.00013698,2]
[382818293,1756740640863,-480.0,0.00013698,2]
[382818295,1756740640873,-480.0,0.00013698,2]
[382818297,1756740640882,-480.0,0.00013698,2]
[382818299,1756740640891,-480.0,0.00013698,2]
[382818301,1756740640901,-563.6,0.00013698,2]
[382818303,1756740640911,-485.68558131,0.00013698,2]
[382818305,1756740640920,-480.0,0.00013698,2]
[382818307,1756740640929,-531.24,0.00013698,2]
[382818309,1756740640938,-552.83,0.00013698,2]
[382818310,1756740640947,-480.0,0.00013698,2]
[382818312,1756740640957,-618.83,0.00013698,2]
[382818314,1756740640966,-480.42338564,0.00013698,2]
[382818316,1756740640975,-975.38,0.00013698,2]
[382818318,1756740640983,-480.0,0.00013698,2]
[382818320,1756740640992,-231.11887486,0.00013698,2]
[382818322,1756740641001,-172.048,0.00013698,2]
[382818324,1756740641010,-560.42,0.00013698,2]
[382818326,1756740641018,-235.14632862,0.00013698,2]
[382818328,1756740641027,-547.68,0.00013698,2]
[382818330,1756740641036,-522.12,0.00013698,2]
[382818332,1756740641045,-480.0,0.00013698,2]
[382818334,1756740641056,-480.0,0.00013698,2]
[382818336,1756740641065,-480.0,0.00013698,2]
[382818338,1756740641075,-480.0,0.00013698,2]
[382818340,1756740641083,-480.0,0.00013698,2]
[382818342,1756740641093,-480.0,0.00013698,2]
[382818344,1756740641103,-480.0,0.00013698,2]
[382818346,1756740641113,-480.0,0.00013698,2]
[382818348,1756740641123,-876.72,0.00013698,2]
[382818350,1756740641132,-480.0,0.00013698,2]
[382818352,1756740641141,-480.0,0.00013698,2]
[382818354,1756740641151,-480.0,0.00013698,2]
[382818356,1756740641163,-480.0,0.00013698,2]
[382818357,1756740641172,-480.0,0.00013698,2]
[382818358,1756740641180,-576.54,0.00013698,2]
[382818359,1756740641187,-580.97,0.00013698,2]
[382818360,1756740641198,-481.87542326,0.00013698,2]
[382818362,1756740641206,-480.0,0.00013698,2]
[382818363,1756740641214,-480.0,0.00013698,2]
[382818364,1756740641223,-688.81,0.00013698,2]
[382818365,1756740641231,-480.0,0.00013698,2]
[382818366,1756740641241,-480.0,0.00013698,2]
[382818367,1756740641249,-480.0,0.00013698,2]
[382818368,1756740641257,-480.0,0.00013698,2]
[382818369,1756740641265,-480.0,0.00013698,2]
[382818370,1756740641274,-480.0,0.00013698,2]
[382818371,1756740641283,-480.0,0.00013698,2]
[382818372,1756740641291,-296.59840181,0.00013698,2]
[382818373,1756740641301,-534.95,0.00013698,2]
[382818374,1756740641310,-480.0,0.00013698,2]
[382818375,1756740641320,-480.0,0.00013698,2]
[382818376,1756740641329,-596.07,0.00013698,2]
[382818377,1756740641338,-480.0,0.00013698,2]
[382818378,1756740641348,-480.0,0.00013698,2]
[382818379,1756740641358,-480.0,0.00013698,2]
[382818380,1756740641367,-480.0,0.00013698,2]
[382818381,1756740641377,-859.04,0.00013698,2]
[382818382,1756740641387,-480.0,0.00013698,2]
[382818383,1756740641396,-574.23,0.00013698,2]
[382818384,1756740641406,-480.0,0.00013698,2]
[382818385,1756740641415,-600.14,0.00013698,2]
[382818386,1756740641424,-480.0,0.00013698,2]
[382818387,1756740641434,-480.0,0.00013698,2]
[382818388,1756740641443,-480.0,0.00013698,2]
[382818389,1756740641452,-332.98186897,0.00013698,2]
[382818402,1756740646325,-147.01813103,0.00013698,2]
[382818404,1756740646335,-480.0,0.00013698,2]
[382818406,1756740646345,-480.0,0.00013698,2]
[382818408,1756740646355,-480.0,0.00013698,2]
[382818410,1756740646365,-813.82,0.00013698,2]
[382818412,1756740646375,-480.0,0.00013698,2]
[382818414,1756740646384,-591.36,0.00013698,2]
[382818416,1756740646394,-480.0,0.00013698,2]
[382818418,1756740646404,-480.0,0.00013698,2]
[382818420,1756740646413,-481.83641985,0.00013698,2]
[382818422,1756740646423,-542.5,0.00013698,2]
[382818424,1756740646433,-480.0,0.00013698,2]
[382818426,1756740646442,-480.0,0.00013698,2]
[382818428,1756740646451,-480.0,0.00013698,2]
[382818429,1756740646461,-480.0,0.00013698,2]
[382818430,1756740646471,-480.0,0.00013698,2]
[382818431,1756740646480,-2.27070298,0.00013698,2]
[382818432,1756740646590,-477.72929702,0.00013698,2]
[382818433,1756740646600,-711.78,0.00013698,2]
[382818434,1756740646610,-481.74901092,0.00013698,2]
[382818435,1756740646619,-480.0,0.00013698,2]
[382818436,1756740646629,-663.05,0.00013698,2]
[382818438,1756740646638,-480.0,0.00013698,2]
[382818440,1756740646648,-480.0,0.00013698,2]
[382818442,1756740646657,-480.0,0.00013698,2]
[382818444,1756740646667,-480.0,0.00013698,2]
[382818446,1756740646677,-549.22,0.00013698,2]
[382818448,1756740646687,-480.0,0.00013698,2]
[382818450,1756740646697,-701.2,0.00013698,2]
[382818451,1756740646706,-690.4,0.00013698,2]
[382818452,1756740646715,-374.55350007,0.00013698,2]
[382818453,1756740646727,-105.44649993,0.00013698,2]
[382818454,1756740646737,-527.62,0.00013698,2]
[382818455,1756740646747,-480.0,0.00013698,2]
[382818456,1756740646757,-480.0,0.00013698,2]
[382818457,1756740646766,-756.32,0.00013698,2]
[382818458,1756740646776,-612.0,0.00013698,2]
[382818459,1756740646785,-511.11,0.00013698,2]
[382818460,1756740646794,-930.23,0.00013698,2]
[382818461,1756740646803,-480.0,0.00013698,2]
[382818462,1756740646812,-480.0,0.00013698,2]
[382818463,1756740646821,-480.0,0.00013698,2]
[382818464,1756740646831,-487.75,0.00013698,2]
[382818465,1756740646840,-807.83,0.00013698,2]
[382818466,1756740646850,-480.0,0.00013698,2]
[382818467,1756740646859,-553.19,0.00013698,2]
[382818468,1756740646868,-101.13435726,0.00013698,2]
[382818469,1756740793587,2422.97578065,0.00013424,2]
[382818470,1756740816850,2422.97578065,0.00013424,2]
[382818471,1756740839308,154.0484387,0.00013424,2]
[382818472,1756740948095,2422.97578065,0.00013424,2]
[382818473,1756740950756,399.0,0.00027397,120]
[382818476,1756741158282,300.0,0.00013421,2]
[382818477,1756741183907,666.03449283,0.00013462,2]
[382818481,1756741291264,480.0,0.00025,30]
[382818485,1756741433655,613.22,0.000135,2]
[382818489,1756741461396,19580.0,0.00030433,60]
[382818490,1756741497665,423.32971653,0.00013013,2]
[382818529,1756741832509,-737.13219998,0.00013547,2]
[382818750,1756741846687,-735.04964314,0.00013547,2]
[382818752,1756741860180,3527.81815688,0.00013412,2]
[382818753,1756741883900,1472.18184312,0.00013412,2]
[382818754,1756741947671,3527.81815688,0.00013412,2]
[382818755,1756741973019,1472.18184312,0.00013412,2]
[382818756,1756742013182,3527.81815688,0.00013412,2]
[382818757,1756742038737,2993.9421088,0.0001346,2]
[382818758,1756742062799,2006.0578912,0.0001346,2]
[382818760,1756742234624,2993.9421088,0.00013496,2]
[382818764,1756742364753,-625.01816408,0.0001356,2]
[382818765,1756742364785,-300.0,0.00013594,2]
[382818766,1756742364809,-1200.0,0.00013595,2]
[382818767,1756742364833,-500.0,0.00013595,2]
[382818768,1756742364859,-500.0,0.00013595,2]
[382818769,1756742364885,-500.0,0.00013595,2]
[382818770,1756742364911,-500.0,0.00013595,2]
[382818771,1756742364936,-500.0,0.00013595,2]
[382818772,1756742364961,-500.0,0.00013595,2]
[382818773,1756742364989,-280.25733717,0.00013595,2]
[382818774,1756742365015,-171.78693926,0.00013595,2]
[382818775,1756742365040,-500.0,0.00013595,2]
[382818776,1756742365065,-309.79377635,0.00013595,2]
[382818777,1756742365090,-500.0,0.00013595,2]
[382818778,1756742365117,-582.84575501,0.00013595,2]
[382818779,1756742365144,-500.0,0.00013595,2]
[382818780,1756742365168,-500.0,0.00013595,2]
[382818781,1756742365194,-500.0,0.00013595,2]
[382818782,1756742365221,-500.0,0.00013595,2]
[382818783,1756742365247,-500.0,0.00013595,2]
[382818784,1756742365272,-500.0,0.00013595,2]
[382818785,1756742365297,-500.0,0.00013595,2]
[382818786,1756742365323,-500.0,0.00013595,2]
[382818787,1756742365349,-500.0,0.00013595,2]
[382818788,1756742365374,-500.0,0.00013595,2]
[382818789,1756742365399,-500.0,0.00013595,2]
[382818790,1756742365426,-500.0,0.00013595,2]
[382818791,1756742365453,-500.0,0.00013595,2]
[382818792,1756742365480,-500.0,0.00013595,2]
[382818793,1756742365505,-500.0,0.00013595,2]
[382818794,1756742365530,-500.0,0.00013595,2]
[382818795,1756742365555,-411.61937207,0.00013595,2]
[382818796,1756742365582,-374.02722383,0.00013595,2]
[382818797,1756742365607,-500.0,0.00013595,2]
[382818798,1756742365798,-500.0,0.00013595,2]
[382818799,1756742365824,-500.0,0.00013595,2]
[382818800,1756742365849,-500.0,0.00013595,2]
[382818801,1756742365876,-533.90891752,0.00013595,2]
[382818802,1756742365903,-500.0,0.00013595,2]
[382818803,1756742365928,-500.0,0.00013595,2]
[382818804,1756742365954,-500.0,0.00013595,2]
[382818805,1756742365980,-490.34868909,0.00013595,2]
[382818806,1756742366004,-500.0,0.00013595,2]
[382818807,1756742366029,-275.41999176,0.00013595,2]
[382818808,1756742366053,-500.0,0.00013595,2]
[382818809,1756742366077,-500.0,0.00013595,2]
[382818810,1756742366100,-300.0,0.00013595,2]
[382818811,1756742366122,-500.0,0.00013595,2]
[382818812,1756742366145,-500.0,0.00013595,2]
[382818813,1756742366169,-500.0,0.00013595,2]
[382818814,1756742366195,-500.0,0.00013595,2]
[382818815,1756742366223,-500.0,0.00013595,2]
[382818816,1756742366248,-291.26699476,0.00013595,2]
[382818817,1756742366273,-500.0,0.00013595,2]
[382818818,1756742366300,-500.0,0.00013595,2]
[382818819,1756742366325,-500.0,0.00013595,2]
[382818820,1756742366350,-500.0,0.00013595,2]
[382818821,1756742366375,-500.0,0.00013595,2]
[382818822,1756742366397,-574.21026725,0.00013595,2]
[382818823,1756742366424,-380.51340522,0.00013595,2]
[382818824,1756742366450,-500.0,0.00013595,2]
[382818825,1756742366476,-500.0,0.00013595,2]
[382818826,1756742366502,-500.0,0.00013595,2]
[382818827,1756742366528,-500.0,0.00013595,2]
[382818828,1756742366556,-500.0,0.00013595,2]
[382818829,1756742366583,-500.0,0.00013595,2]
[382818830,1756742366610,-500.0,0.00013595,2]
[382818831,1756742366635,-500.0,0.00013595,2]
[382818832,1756742366661,-500.0,0.00013595,2]
[382818833,1756742366686,-500.0,0.00013595,2]
[382818834,1756742366716,-500.0,0.00013595,2]
[382818835,1756742366741,-500.0,0.00013595,2]
[382818836,1756742366767,-300.0,0.00013596,2]